bitfinex/quotes_ETHUSD_20250807
["timestamp","ask_amount","ask_price","bid_price","bid_amount"]
[1754591226526,0.55927657,3823.8,3823.6,2.74571337]
[1754591226724,0.002,3823.9,3823.7,0.1304]
[1754591226887,0.4557,3823.8,3823.7,2.74565477]
[1754591227291,0.4557,3823.8,3823.7,0.1304]
[1754591227512,0.8959,3823.8,3823.3,4.0]
[1754591227827,0.8959,3823.7,3823.4,0.1304]
[1754591228022,0.56127657,3823.9,3823.4,0.1304]
[1754591228223,0.4557,3823.8,3823.4,0.1304]
[1754591228593,0.4557,3823.7,3823.4,0.1304]
[1754591229337,0.4557,3823.6,3823.4,0.1304]
[1754591230023,0.4557,3823.6,3823.4,2.74587246]
[1754591230218,0.4557,3823.6,3823.4,0.1304]
[1754591230419,0.002,3823.9,3823.4,2.74586978]
[1754591230618,0.002,3823.9,3823.5,2.61538391]
[1754591230619,0.4557,3823.8,3823.5,2.61538391]
[1754591231119,0.4557,3823.7,3823.4,0.1304]
[1754591231324,0.4402,3823.8,3823.4,2.74586524]
[1754591231510,0.4557,3823.6,3823.4,2.74586524]
[1754591231836,0.4557,3823.6,3823.5,2.61540473]
[1754591232136,0.4577,3823.9,3823.7,2.61521212]
[1754591232318,0.4577,3823.9,3823.8,2.61519953]
[1754591232319,0.002,3823.9,3823.8,2.61519953]
[1754591232495,0.002,3823.9,3823.8,2.74559953]
[1754591232918,0.002,3823.9,3823.8,3.68449953]
[1754591233426,0.002,3823.9,3823.8,2.74559953]
[1754591233733,0.002,3823.9,3823.8,3.75760264]
[1754591234432,0.002,3823.9,3823.8,4.69650264]
[1754591235230,0.002,3823.9,3823.8,3.75760264]
[1754591236411,0.002,3823.9,3823.8,4.25510264]
[1754591236612,0.002,3823.9,3823.8,4.69650264]
[1754591237214,0.002,3823.9,3823.8,18.07612856]
[1754591237418,0.002,3823.9,3823.8,22.34612856]
[1754591239135,0.002,3823.9,3823.8,11.02760264]
[1754591239301,0.002,3823.9,3823.8,15.02560264]
[1754591239502,0.002,3823.9,3823.8,11.02760264]
[1754591242726,0.002,3823.9,3823.8,11.52510264]
[1754591243432,0.002,3823.9,3823.8,11.96650264]
[1754591245139,0.002,3823.9,3823.8,11.02760264]
[1754591245337,0.4577,3823.9,3823.8,11.02760264]
[1754591245530,0.4577,3823.9,3823.8,15.02460264]
[1754591246068,0.002,3823.9,3823.8,15.02460264]
[1754591247016,0.4577,3823.9,3823.8,4.14240311]
[1754591247345,0.8979,3823.9,3823.8,3.1304]
[1754591247636,0.8979,3823.9,3823.8,5.74559953]
[1754591249042,0.8979,3823.9,3823.8,3.1304]
[1754591249541,1.45900914,3823.9,3823.8,3.1304]
[1754591249909,1.01880914,3823.9,3823.8,3.1304]
[1754591250143,1.45270914,3823.9,3823.8,3.0]
[1754591250842,0.56310914,3823.9,3823.8,6.10719953]
[1754591251060,0.56310914,3823.9,3823.8,7.49552131]
[1754591251248,0.56310914,3823.9,3823.8,11.49152131]
[1754591252542,0.56310914,3823.9,3823.8,10.54222131]
[1754591253047,0.56310914,3823.9,3823.8,15.30422131]
[1754591253244,0.56310914,3823.9,3823.8,15.76152131]
[1754591254551,0.56310914,3823.9,3823.8,14.81222131]
[1754591254916,1.04260914,3823.9,3823.8,14.81222131]
[1754591255116,1.04260914,3823.9,3823.8,10.81622131]
[1754591255611,1.04260914,3823.9,3823.8,7.27]
[1754591255818,1.47650914,3823.9,3823.8,7.27]
[1754591256350,1.04260914,3823.9,3823.8,7.27]
[1754591257463,1.47650914,3823.9,3823.8,7.27]
[1754591257826,0.56310914,3823.9,3823.8,7.27]
[1754591258032,0.56310914,3823.9,3823.8,12.10453953]
[1754591258430,0.56310914,3823.9,3823.8,16.10053953]
[1754591259062,0.002,3823.9,3823.8,16.10053953]
[1754591264074,0.002,3823.9,3823.8,16.65053953]
[1754591264570,0.002,3823.9,3823.8,27.03016545]
[1754591265764,0.002,3823.9,3823.8,25.53086545]
[1754591265963,0.002,3823.9,3823.8,26.48016545]
[1754591266476,0.002,3823.9,3823.8,27.03016545]
[1754591267074,1e-08,3823.9,3823.8,26.89976545]
[1754591267273,1e-08,3823.9,3823.8,27.03016545]
[1754591269279,1e-08,3823.9,3823.8,26.57286545]
[1754591269475,1e-08,3823.9,3823.8,27.03016545]
[1754591269777,1e-08,3823.9,3823.8,25.52886545]
[1754591270875,1e-08,3823.9,3823.8,21.53486545]
[1754591271276,1e-08,3823.9,3823.8,25.52886545]
[1754591272179,0.47950001,3823.9,3823.8,10.87923953]
[1754591272580,1e-08,3823.9,3823.8,10.87923953]
[1754591273360,1e-08,3823.9,3823.8,21.25886545]
[1754591273675,1e-08,3823.9,3823.8,22.20816545]
[1754591276151,1e-08,3823.9,3823.8,21.75086545]
[1754591276792,1e-08,3823.9,3823.8,25.52886545]
[1754591278767,1e-08,3823.9,3823.8,26.47036545]
[1754591280598,1e-08,3823.9,3823.8,26.47136545]
[1754591280802,1e-08,3823.9,3823.8,27.02136545]
[1754591282006,0.002,3824.3,3824.2,3.16492599]
[1754591282213,0.002,3824.3,3824.2,25.68554505]
[1754591282495,0.4797,3824.3,3824.2,14.75591913]
[1754591282674,0.002,3824.3,3824.2,14.88631913]
[1754591283476,0.002,3824.3,3824.2,15.37731913]
[1754591283666,0.002,3824.3,3824.2,15.82781913]
[1754591284312,1e-08,3824.3,3824.2,16.37781913]
[1754591284462,0.002,3824.5,3824.2,16.37781913]
[1754591284463,1e-08,3824.7,3824.6,3.16465251]
[1754591284816,0.4678,3825.8,3825.7,2.61385721]
[1754591285370,0.9455,3825.8,3825.7,2.61385721]
[1754591285687,0.9455,3825.8,3825.7,2.74425721]
[1754591286012,0.9455,3825.8,3825.7,0.1304]
[1754591286171,0.9455,3825.8,3825.5,3.0]
[1754591286365,0.9455,3825.7,3825.5,3.1304]
[1754591286581,0.9455,3825.6,3825.5,3.1304]
[1754591288402,0.9455,3825.6,3825.5,5.74443738]
[1754591288598,0.9455,3825.6,3825.5,5.9414711]
[1754591288990,0.4777,3825.6,3825.5,5.9414711]
[1754591289161,0.4777,3825.9,3825.6,2.61396905]
[1754591289367,0.4777,3825.8,3825.5,5.94144944]
[1754591289588,0.24403908,3826.1,3825.7,0.1304]
[1754591289799,0.4678,3826.0,3825.7,0.1304]
[1754591290099,0.4678,3825.9,3825.7,0.1304]
[1754591290268,0.4777,3825.8,3825.7,0.1304]
[1754591290869,0.72173908,3826.1,3825.7,0.1304]
[1754591291070,0.9455,3826.0,3825.7,0.1304]
[1754591291296,0.4678,3826.0,3825.7,2.74429481]
[1754591291602,0.4777,3826.0,3825.7,0.85554335]
[1754591291803,0.4777,3826.0,3825.9,2.74416408]
[1754591292111,0.4678,3826.3,3826.2,2.61355914]
[1754591292310,0.4777,3826.3,3826.1,2.7440006]
[1754591292473,0.4777,3826.3,3826.2,2.61355914]
[1754591292672,0.4777,3826.3,3826.1,2.7440058]
[1754591292868,14.5,3826.5,3826.1,2.7440058]
[1754591293091,0.4777,3826.2,3826.1,2.7440058]
[1754591293268,0.4777,3826.2,3826.1,0.1304]
[1754591293684,0.9455,3826.2,3826.1,0.1304]
[1754591296688,3.55905914,3826.2,3826.1,0.1304]
[1754591296897,0.9455,3826.2,3826.1,0.1304]
[1754591297278,3.55905914,3826.2,3826.1,0.1304]
[1754591297799,2.61369566,3826.1,3825.8,0.1304]
[1754591298198,3.55923913,3826.0,3825.8,0.1304]
[1754591298410,0.9455,3826.0,3825.8,0.1304]
[1754591298586,0.9455,3825.9,3825.8,0.1304]
[1754591301788,0.9455,3825.9,3825.5,0.19703372]
[1754591302128,0.9455,3825.8,3825.6,3.1304]
[1754591302294,0.4777,3825.7,3825.6,3.1304]
[1754591302712,0.4777,3825.7,3825.6,2.74436905]
[1754591303103,0.4777,3825.7,3825.6,0.1304]
[1754591303305,0.002,3825.9,3825.6,0.1304]
[1754591303492,0.002,3825.9,3825.6,2.74436905]
[1754591303493,0.4777,3825.8,3825.6,2.74436905]
[1754591303814,0.4698,3825.9,3825.6,2.74436905]
[1754591303815,0.4777,3825.7,3825.6,0.1304]
[1754591304410,0.4777,3825.7,3825.6,2.74436905]
[1754591304717,0.4777,3825.7,3825.6,0.1304]
[1754591305514,0.4797,3825.9,3825.6,0.1304]
[1754591305717,0.4797,3825.9,3825.8,2.6138324]
[1754591306016,0.002,3825.9,3825.8,2.7442324]
[1754591306339,0.002,3825.9,3825.8,3.6857324]
[1754591307532,0.002,3825.9,3825.8,3.2352324]
[1754591307826,0.002,3825.9,3825.8,2.7442324]
[1754591308688,0.002,3825.9,3825.8,3.2134324]
[1754591309120,0.002,3825.9,3825.8,0.1304]
[1754591309299,0.4589,3825.9,3825.8,0.1304]
[1754591309504,0.002,3825.9,3825.8,0.1304]
[1754591310795,0.4589,3825.9,3825.8,0.1304]
[1754591311133,0.894,3825.9,3825.7,0.1304]
[1754591311297,0.4569,3825.8,3825.7,0.1304]
[1754591312132,0.002,3825.9,3825.7,0.1304]
[1754591312424,0.4589,3825.9,3825.7,0.1304]
[1754591312590,0.002,3825.9,3825.7,0.1304]
[1754591312793,0.4569,3825.8,3825.7,0.1304]
[1754591313222,0.002,3825.9,3825.7,0.1304]
[1754591313524,0.4589,3825.9,3825.7,0.1304]
[1754591313697,0.4589,3825.9,3825.7,2.74428623]
[1754591314017,0.4589,3825.9,3825.7,0.1304]
[1754591314532,0.002,3825.9,3825.8,3.6834324]
[1754591315193,0.002,3825.9,3825.8,0.1304]
[1754591315921,0.894,3825.9,3825.8,0.1304]
[1754591316120,0.894,3825.9,3825.5,2.80740598]
[1754591316324,0.4569,3825.8,3825.7,3.1304]
[1754591316487,0.4569,3825.8,3825.7,0.1304]
[1754591317234,0.002,3825.9,3825.7,2.74430072]
[1754591317439,0.002,3825.9,3825.8,3.5530324]
[1754591317842,0.002,3825.9,3825.7,0.1304]
[1754591318051,0.4569,3825.8,3825.7,0.1304]
[1754591318528,0.002,3825.9,3825.7,0.1304]
[1754591318736,0.4589,3825.9,3825.7,0.1304]
[1754591318897,0.4589,3825.9,3825.7,2.74426903]
[1754591319098,0.002,3825.9,3825.8,2.6138324]
[1754591319900,0.002,3825.9,3825.7,3.21427461]
[1754591320136,0.002,3825.9,3825.7,3.68347461]
[1754591321037,0.4569,3825.8,3825.7,0.1304]
[1754591323622,0.892,3825.8,3825.5,0.1304]
[1754591323807,0.4351,3825.8,3825.5,0.1304]
[1754591324015,0.892,3825.7,3825.5,0.1304]
[1754591324313,0.4569,3825.6,3825.5,5.74442554]
[1754591324917,3.988,3825.8,3825.5,3.1304]
[1754591325113,3.988,3825.8,3825.5,5.74443433]
[1754591325318,3.988,3825.8,3825.6,3.0]
[1754591325521,0.4569,3825.7,3825.6,3.0]
[1754591325909,2.61396905,3825.6,3825.5,0.1304]
[1754591326159,1.58120102,3825.6,3825.1,0.1304]
[1754591326339,2.85856999,3825.5,3825.1,0.1304]
[1754591326639,3.988,3825.4,3825.1,0.1304]
[1754591326817,3.988,3825.4,3825.1,0.5996]
[1754591327031,3.988,3825.4,3825.1,0.1304]
[1754591327233,4.4449,3825.4,3825.1,2.74469636]
[1754591328214,4.4449,3825.4,3825.1,3.1304]
[1754591328412,4.4449,3825.4,3825.1,5.7447075]
[1754591329327,3.988,3825.4,3825.1,4.0696]
[1754591329724,3.988,3825.4,3825.1,3.21390798]
[1754591329945,4.4449,3825.4,3825.1,3.21390798]
[1754591330242,4.4449,3825.4,3825.1,2.74466234]
[1754591330448,4.4449,3825.4,3825.1,0.1304]
[1754591331347,4.4449,3825.4,3825.1,2.74468333]
[1754591331843,4.4449,3825.4,3825.1,0.1304]
[1754591332346,3.988,3825.4,3825.1,0.1304]
[1754591332574,0.4569,3825.3,3825.1,0.1304]
[1754591333285,3.988,3825.4,3824.7,2.61457819]
[1754591333286,0.892,3825.2,3824.7,2.61457819]
[1754591333436,4.88,3825.1,3824.9,0.1304]
[1754591333940,0.4569,3825.0,3824.9,0.1304]
[1754591334141,3.988,3825.1,3825.0,3.0]
[1754591334364,4.4449,3825.1,3825.0,3.0]
[1754591334736,3.988,3825.1,3825.0,3.0]
[1754591335056,3.988,3825.1,3825.0,2.61437908]
[1754591335776,3.988,3825.1,3825.0,3.55357908]
[1754591336136,3.988,3825.1,3825.0,6.55357908]
[1754591338701,3.988,3825.1,3825.0,6.52057908]
[1754591340691,3.988,3825.1,3825.0,3.0]
[1754591341037,3.988,3825.1,3825.0,5.61437908]
[1754591341854,3.988,3825.1,3825.0,6.07687908]
[1754591342049,3.988,3825.1,3825.0,6.52057908]
[1754591342251,3.987,3825.3,3825.2,2.61420757]
[1754591342455,3.987,3825.3,3825.2,3.52040757]
[1754591342971,0.002,3825.9,3825.2,3.52040757]
[1754591342972,0.002,3825.9,3825.5,2.61401508]
[1754591343179,4.23112388,3825.8,3825.3,3.07662816]
[1754591343361,0.72602388,3825.7,3825.3,3.07662816]
[1754591343671,0.72602388,3825.7,3825.2,0.4437]
[1754591343672,0.4819,3825.6,3825.5,0.1304]
[1754591347498,4.4689,3825.6,3825.5,0.1304]
[1754591347678,3.987,3825.6,3825.5,0.1304]
[1754591349359,4.23123869,3825.6,3825.5,0.1304]
[1754591349864,4.71313869,3825.6,3825.5,0.1304]
[1754591350076,4.23123869,3825.6,3825.5,0.1304]
[1754591350282,7.04406256,3825.6,3825.3,0.1304]
[1754591350588,0.4819,3825.5,3825.3,0.1304]
[1754591350789,3.986,3825.4,3825.3,0.1304]
[1754591350978,4.9255,3825.4,3825.3,0.1304]
[1754591351490,4.4679,3825.4,3825.3,0.1304]
[1754591351895,4.9255,3825.4,3825.0,5.61436995]
[1754591352072,0.4819,3825.3,3825.0,5.74476995]
[1754591352268,4.4679,3825.2,3825.0,5.74476995]
[1754591352889,3.986,3825.2,3825.0,3.1304]
[1754591353189,4.4679,3825.2,3825.0,5.74477908]
[1754591353393,3.986,3825.2,3825.1,2.61431073]
[1754591355994,3.986,3825.2,3825.0,5.74476934]
[1754591356171,3.986,3825.2,3825.1,2.61431073]
[1754591356370,3.986,3825.2,3825.1,3.52051073]
[1754591357189,3.986,3825.4,3825.3,2.61412767]
[1754591357385,3.986,3825.4,3825.3,0.9062]
[1754591357695,3.986,3825.4,3825.0,6.65095242]
[1754591357995,4.4679,3825.4,3825.0,6.65095242]
[1754591358198,4.4679,3825.4,3825.0,6.65096294]
[1754591358400,4.4679,3825.4,3825.0,4.0366]
[1754591358566,4.4679,3825.4,3825.0,4.59180011]
[1754591358567,3.986,3825.4,3825.0,4.59180011]
[1754591358773,0.4819,3825.3,3825.1,2.61428926]
[1754591359283,3.986,3825.4,3825.0,5.74472831]
[1754591359482,3.986,3825.4,3825.0,6.65092831]
[1754591359688,4.4679,3825.4,3825.1,2.61429172]
[1754591359866,4.4679,3825.4,3825.0,4.0366]
[1754591360071,3.986,3825.4,3825.0,3.0]
[1754591360294,0.4819,3825.3,3825.0,3.0]
[1754591360598,0.4819,3825.3,3825.1,2.61429609]
[1754591360798,3.986,3825.4,3825.1,2.61429609]
[1754591361010,3.986,3825.4,3825.1,3.07679609]
[1754591361502,3.986,3825.4,3825.1,3.52049609]
[1754591361873,3.986,3825.4,3825.1,0.9062]
[1754591362103,3.986,3825.4,3825.1,3.52050445]
[1754591362308,3.986,3825.4,3825.0,3.0]
[1754591362603,0.4819,3825.3,3825.0,5.61437691]
[1754591362988,0.4819,3825.3,3825.0,3.0]
[1754591363191,0.4819,3825.2,3825.0,3.0]
[1754591363590,0.4819,3825.2,3825.0,5.61434304]
[1754591363790,0.4819,3825.1,3825.0,3.0]
[1754591363990,0.4819,3825.1,3825.0,5.61437908]
[1754591364193,0.4819,3825.1,3824.6,3.986]
[1754591364194,3.985,3825.1,3824.6,0.001]
[1754591364501,0.1304,3824.9,3824.6,0.001]
[1754591364700,3.985,3824.8,3824.6,0.001]
[1754591364906,4.4669,3824.8,3824.6,0.001]
[1754591365084,0.1304,3824.9,3824.8,5.61451579]
[1754591365280,3.985,3825.3,3824.9,2.61444743]
[1754591365496,3.985,3825.3,3825.1,0.1304]
[1754591365876,3.985,3825.3,3825.1,2.74470885]
[1754591366707,0.4819,3825.2,3824.8,3.0]
[1754591366881,0.4819,3825.2,3825.0,0.1304]
[1754591367404,0.4819,3825.2,3825.0,2.7447767]
[1754591367600,0.4819,3825.2,3825.0,0.1304]
[1754591367804,0.24434953,3825.1,3825.0,0.1304]
[1754591368392,0.24434953,3825.1,3825.0,2.74477908]
[1754591368793,0.24432946,3825.1,3825.0,0.1304]
[1754591370010,0.24432946,3825.1,3825.0,2.74477908]
[1754591370219,0.24432946,3825.1,3825.0,3.22807908]
[1754591370604,0.24432946,3825.1,3825.0,0.6137]
[1754591370993,0.24432946,3825.1,3825.0,3.22807908]
[1754591371325,0.24432946,3825.1,3825.0,0.6137]
[1754591371616,0.72382946,3825.1,3825.0,0.1304]
[1754591372116,0.24432946,3825.1,3825.0,0.1304]
[1754591372323,0.24432946,3825.1,3825.0,2.74477908]
[1754591372491,0.24432946,3825.1,3825.0,0.1304]
[1754591372690,0.24432946,3825.1,3825.0,2.74477908]
[1754591372900,0.24432946,3825.1,3825.0,3.22807908]
[1754591373219,4.4665,3825.3,3825.0,0.1304]
[1754591373423,0.24437186,3825.2,3825.0,0.1304]
[1754591373746,3.987,3825.3,3825.1,0.9197]
[1754591374018,0.2443674,3825.2,3825.0,2.74475]
[1754591374216,3.987,3825.3,3825.1,2.61430642]
[1754591374419,0.24420759,3825.2,3825.0,2.7447645]
[1754591374723,3.987,3825.3,3825.0,0.1304]
[1754591374909,0.72369191,3825.2,3825.0,0.1304]
[1754591375090,0.4795,3825.2,3825.0,0.1304]
[1754591375286,4.4342,3825.3,3825.0,0.1304]
[1754591375518,0.4795,3825.1,3825.0,0.1304]
[1754591376526,4.4342,3825.3,3825.0,0.1304]
[1754591376826,0.9267,3825.1,3824.6,0.001]
[1754591377011,4.22906552,3825.0,3824.6,0.001]
[1754591377214,7.52609474,3825.0,3824.6,0.001]
[1754591377412,3.54120883,3824.9,3824.6,0.001]
[1754591377616,0.1304,3824.8,3824.6,0.001]
[1754591377800,3.984,3824.7,3824.6,0.001]
[1754591378207,4.4635,3824.7,3824.6,0.001]
[1754591380007,3.984,3824.7,3824.6,0.001]
[1754591381329,3.984,3824.7,3824.6,3.53535251]
[1754591381513,3.984,3824.7,3824.6,1.66621285]
[1754591381719,3.984,3824.7,3824.6,0.6147]
[1754591381921,3.984,3824.7,3824.6,0.1314]
[1754591382123,3.984,3824.7,3824.6,2.74605251]
[1754591382503,3.984,3824.7,3824.6,0.1314]
[1754591382711,4.4635,3824.7,3824.6,0.001]
[1754591383124,3.984,3824.7,3824.6,0.001]
[1754591383300,3.984,3824.7,3824.6,3.53535251]
[1754591383630,0.1304,3825.0,3824.8,2.61446435]
[1754591383935,0.24402147,3825.2,3825.0,2.61433238]
[1754591384135,3.984,3825.1,3824.9,2.61439513]
[1754591384336,3.984,3825.1,3825.0,0.9197]
[1754591384799,0.1324,3825.3,3825.0,0.9197]
[1754591385142,3.984,3825.2,3825.0,0.9197]
[1754591386327,3.984,3825.2,3825.0,3.53407526]
[1754591387334,3.984,3825.2,3825.1,2.61431073]
[1754591387531,4.22816355,3825.2,3825.1,2.61431073]
[1754591387734,4.22816355,3825.2,3824.8,2.74490515]
[1754591387922,3.984,3825.2,3824.8,2.74490515]
[1754591388097,0.4795,3825.1,3824.9,2.61444124]
[1754591388438,0.4795,3825.1,3824.8,0.1304]
[1754591388762,0.4795,3825.1,3824.9,2.61441948]
[1754591389537,0.4795,3825.1,3825.0,2.61437908]
[1754591389903,0.4795,3825.1,3824.8,2.74489847]
[1754591390104,0.4795,3825.1,3824.9,2.61439961]
[1754591390505,0.4815,3825.1,3824.8,3.22818919]
[1754591390704,0.002,3825.1,3824.9,3.09773696]
[1754591390904,0.002,3825.1,3825.0,2.61437908]
[1754591391323,0.002,3825.1,3825.0,3.09767908]
[1754591391532,0.002,3825.1,3825.0,3.53407908]
[1754591392344,0.002,3825.1,3825.0,2.61437908]
[1754591392919,0.002,3825.1,3824.9,2.61444382]
[1754591393509,0.002,3825.1,3825.0,2.61437908]
[1754591394006,0.002,3825.1,3825.0,6.53407908]
[1754591394221,3.985,3825.1,3825.0,8.63034011]
[1754591398108,0.002,3825.1,3825.0,8.63034011]
[1754591399227,0.002,3825.1,3825.0,6.22807908]
[1754591399426,0.002,3825.1,3825.0,5.74477908]
[1754591400134,0.002,3825.1,3825.0,6.65497908]
[1754591400336,2.61458415,3824.7,3824.6,0.001]
[1754591400551,8.08907527,3824.7,3824.6,0.001]
[1754591400851,22.9701322,3824.7,3824.6,0.001]
[1754591401224,18.42490223,3824.7,3824.6,0.001]
[1754591401427,19.91371918,3824.7,3824.6,0.001]
[1754591401817,18.85741808,3824.7,3824.6,0.001]
[1754591402012,18.72701808,3824.7,3824.6,0.001]
[1754591402418,19.22121808,3824.7,3824.6,0.001]
[1754591402612,18.9772,3824.7,3824.6,0.001]
[1754591402851,4.4772,3824.7,3824.6,0.001]
[1754591403550,3.983,3824.7,3824.6,0.001]
[1754591403776,14.5,3824.8,3824.6,0.001]
[1754591403945,3.983,3824.7,3824.6,3.06275251]
[1754591404125,3.983,3824.7,3824.6,3.65625251]
[1754591404323,3.983,3824.7,3824.6,0.1314]
[1754591404535,6.81662,3824.7,3824.6,0.001]
[1754591404851,9.56160415,3824.7,3824.6,0.001]
[1754591405451,7.19068731,3824.7,3824.6,0.001]
[1754591405617,9.80527146,3824.7,3824.6,0.001]
[1754591405950,6.25478731,3824.7,3824.6,0.001]
[1754591406146,4.85126731,3824.7,3824.6,0.001]
[1754591406352,4.22666731,3824.7,3824.6,0.001]
[1754591406534,4.22660442,3824.7,3824.6,0.001]
[1754591406732,0.24360442,3824.7,3824.6,0.001]
[1754591406930,4.4772,3824.7,3824.6,0.001]
[1754591407336,3.983,3824.7,3824.6,0.001]
[1754591408132,14.5,3825.0,3824.6,0.4641]
[1754591408333,4.22661618,3824.9,3824.6,0.4641]
[1754591408551,3.983,3824.9,3824.6,0.001]
[1754591408753,0.73785377,3824.8,3824.6,0.001]
[1754591409060,3.983,3824.7,3824.6,0.001]
[1754591409267,7.69656645,3824.7,3824.6,0.001]
[1754591409430,7.66388415,3824.7,3824.6,0.001]
[1754591409760,7.90751786,3824.7,3824.6,0.001]
[1754591410164,4.04424715,3824.7,3824.6,0.001]
[1754591410361,5.412663,3824.7,3824.6,0.001]
[1754591410563,7.46581786,3824.7,3824.6,0.001]
[1754591410767,7.90751786,3824.7,3824.6,0.001]
[1754591410930,0.86823371,3824.7,3824.6,0.001]
[1754591411129,4.6076,3824.7,3824.6,0.001]
[1754591411333,4.85123371,3824.7,3824.6,0.001]
[1754591411632,21.96581786,3824.7,3824.6,0.001]
[1754591411953,22.40751786,3824.7,3824.6,0.001]
[1754591412361,22.40748319,3824.7,3824.6,0.001]
[1754591412677,22.40748529,3824.7,3824.6,0.001]
[1754591413042,22.40750173,3824.7,3824.6,0.001]
[1754591414576,7.90750173,3824.7,3824.6,0.001]
[1754591415077,23.45969691,3824.7,3824.6,0.001]
[1754591416774,14.87401758,3824.7,3824.6,0.001]
[1754591416976,4.22661758,3824.7,3824.6,0.9112]
[1754591417455,0.24361758,3824.7,3824.6,0.9112]
[1754591417790,0.1304,3824.9,3824.6,0.9112]
[1754591418077,3.983,3824.8,3824.6,0.4641]
[1754591418251,3.983,3824.7,3824.6,0.4641]
[1754591418447,3.983,3824.7,3824.6,0.9112]
[1754591418973,3.983,3824.7,3824.6,3.65625251]
[1754591419179,3.983,3824.7,3824.6,5.62141793]
[1754591419687,0.002,3825.1,3824.6,5.62137859]
[1754591419896,3.983,3825.0,3824.8,2.61447888]
[1754591420049,3.983,3825.0,3824.9,0.9102]
[1754591420445,3.983,3825.0,3824.9,1.0406]
[1754591420751,3.983,3825.0,3824.9,18.37180542]
[1754591421547,0.002,3825.1,3825.0,2.61437908]
[1754591421748,3.985,3825.1,3825.0,3.52457908]
[1754591423372,0.002,3825.1,3825.0,10.79457908]
[1754591423554,0.002,3825.1,3825.0,13.47845836]
[1754591423991,0.002,3825.1,3825.0,7.27]
[1754591425978,0.002,3825.1,3825.0,10.79457908]
[1754591426585,0.002,3825.1,3825.0,10.92497908]
[1754591428182,0.002,3825.1,3825.0,10.01477908]
[1754591428483,0.002,3825.1,3825.0,10.46817908]
[1754591428662,0.002,3825.1,3825.0,7.4004]
[1754591428857,0.002,3825.1,3825.0,4.4004]
[1754591429387,0.002,3825.1,3825.0,7.01477908]
[1754591429753,0.002,3825.1,3825.0,7.91847908]
[1754591429952,0.002,3825.1,3825.0,13.30973856]
[1754591431086,0.002,3825.1,3825.0,10.91847908]
[1754591431256,0.002,3825.1,3825.0,7.4004]
[1754591431457,0.4793,3825.1,3825.0,7.4004]
[1754591431659,0.4793,3825.1,3825.0,4.4004]
[1754591431974,0.4793,3825.1,3825.0,4.27]
[1754591431975,0.9236,3825.1,3825.0,4.27]
[1754591432292,1.67577776,3825.1,3824.6,0.001]
[1754591432485,0.9216,3825.0,3824.6,0.001]
[1754591432663,3.982,3824.9,3824.6,0.001]
[1754591432869,14.6304,3824.8,3824.6,0.001]
[1754591433268,0.4773,3824.7,3824.6,0.001]
[1754591434580,14.6304,3824.8,3824.6,3.001]
[1754591434961,0.002,3824.7,3824.6,3.001]
[1754591435381,0.002,3824.7,3824.6,0.001]
[1754591435784,0.4793,3824.7,3824.6,0.001]
[1754591436470,0.9236,3824.7,3824.6,0.001]
[1754591436667,3.57086645,3824.7,3824.6,0.001]
[1754591436993,3.78188046,3824.7,3824.6,0.001]
[1754591437200,3.81456276,3824.7,3824.6,0.001]
[1754591437559,4.37599306,3824.7,3824.6,0.001]
[1754591438374,18.87599306,3824.7,3824.6,0.001]
[1754591438688,18.84331076,3824.7,3824.6,0.001]
[1754591439209,18.84326743,3824.7,3824.6,0.001]
[1754591439700,22.82521651,3824.7,3824.6,0.001]
[1754591440967,19.41943236,3824.7,3824.6,0.001]
[1754591441269,22.03401651,3824.7,3824.6,0.001]
[1754591441704,22.51131651,3824.7,3824.6,0.001]
[1754591442200,22.95561651,3824.7,3824.6,0.001]
[1754591442407,22.94418621,3824.7,3824.6,0.001]
[1754591442706,3.16478924,3824.4,3824.3,0.001]
[1754591442907,18.49419227,3824.4,3824.3,0.001]
[1754591443105,19.38310741,3824.4,3824.3,0.001]
[1754591443292,33.88310741,3824.4,3824.3,0.001]
[1754591444869,23.50348149,3824.4,3824.3,0.001]
[1754591446622,23.50348149,3824.4,3823.9,0.001]
[1754591446623,2.61506276,3824.0,3823.9,0.001]
[1754591446918,7.56484329,3824.0,3823.9,0.001]
[1754591447086,8.45375501,3824.0,3823.9,0.001]
[1754591447289,22.95375501,3824.0,3823.9,0.001]
[1754591448024,22.95299875,3824.0,3823.9,0.001]
[1754591448720,22.95287181,3824.0,3823.9,0.001]
[1754591449126,18.97087181,3824.0,3823.9,0.001]
[1754591449326,23.05957181,3824.0,3823.9,0.001]
[1754591449491,21.90187181,3824.0,3823.9,0.9047]
[1754591449822,22.03227181,3824.0,3823.9,0.9047]
[1754591450014,21.78955295,3824.0,3823.9,0.001]
[1754591451222,19.17449019,3824.0,3823.9,0.001]
[1754591451422,21.78955295,3824.0,3823.9,0.001]
[1754591452121,23.50372222,3824.0,3823.9,0.001]
[1754591454099,23.26115295,3824.0,3823.9,0.001]
[1754591454325,23.50361409,3824.0,3823.9,0.001]
[1754591456633,2.754,3823.6,3821.4,0.001]
[1754591456798,2.61657872,3821.8,3821.4,0.001]
[1754591456996,2.61650716,3821.9,3821.5,0.9037]
[1754591457203,3.0,3822.7,3821.6,0.9037]
[1754591457204,21.26183036,3821.8,3821.6,0.9037]
[1754591457501,4.015,3821.7,3821.4,0.001]
[1754591457729,2.649472,3821.6,3821.4,0.001]
[1754591457930,4.015,3821.5,3821.4,0.001]
[1754591458498,4.015,3821.5,3821.4,0.9304]